Cogmind - Beta 15 @@@ ROGUE MODE // 2025.07.15 @ 15:57:05 Player: jumpy Result: Destroyed by Y-45 Defender with Heavy Assault Rifle Performance ------------- Evolutions (1) 500 Regions Visited (2) 400 Robots Destroyed (31) 155 Value Destroyed (564) 564 Prototype IDs (1) 20 Alien Tech Used (0) 0 Bonus (0) 0 TOTAL SCORE: 1639 Bonus ------- None Cogmind --------- Core Integrity 0/400 Matter 127/300 Energy 100/100 System Corruption 0% Temperature Cool (9) Movement Core (200) Ox3 Location -9/Materials Parts ------- > --- POWER (1) -------- (None) > --- PROPULSION (3) --- (None) > --- UTILITY (3) ------ Medium Storage Unit Seismic Detector > --- WEAPON (2) ------- (None) > --- INVENTORY (10) --- Heavy Ion Engine Hover Unit Improved Hover Unit Improved Hover Unit Improved Hover Unit Improved Hover Unit Improved Terrain Scanner Particle Gun Grenade Launcher Mining Laser Peak State ------------ > --- POWER ------------ Heavy Ion Engine > --- PROPULSION ------- Light Treads Improved Treads Improved Treads > --- UTILITY ---------- Medium Storage Unit Seismic Detector > --- WEAPON ----------- Particle Gun Autogun > --- INVENTORY -------- Heavy Ion Engine Improved Hover Unit Improved Hover Unit Improved Hover Unit Improved Hover Unit Improved Terrain Scanner Seismic Detector Grenade Launcher Mining Laser [Rating: 15] Favorites ----------- Power Ion Engine Engine Ion Engine Propulsion Light Treads Treads Light Treads Utility Seismic Detector Device Seismic Detector Storage Medium Storage Unit Weapon Assault Rifle Energy Gun Particle Gun Ballistic Gun Assault Rifle Build | -11 -10 -9 ------- Run | Yrd Mat Mat Slots Evolved 2 | . . 2 Power . | . . . Propulsion 1 | . . 1 Utility 1 | . . 1 Weapon . | . . . Parts Attached 19 | 8 3 8 Power 4 | 2 1 1 Engine 4 | 2 1 1 Core . | . . . Reactor . | . . . Propulsion 5 | 2 . 3 Treads 5 | 2 . 3 Leg . | . . . Wheel . | . . . Hover . | . . . Flight . | . . . Utility 5 | 2 2 1 Device 3 | 1 1 1 Storage 2 | 1 1 . Processor . | . . . Hackware . | . . . Protection . | . . . Artifact . | . . . Weapon 5 | 2 . 3 Energy Gun 1 | . . 1 Energy Cannon . | . . . Ballistic Gun 4 | 2 . 2 Ballistic Cannon . | . . . Launcher . | . . . Special Weapon . | . . . Impact Weapon . | . . . Slashing Weapon . | . . . Piercing Weapon . | . . . Special Melee Weapon . | . . . Unidentified Prototypes 1 | . . 1 Parts Lost 9 | . 1 8 Power 2 | . 1 1 Propulsion 3 | . . 3 Utility 1 | . . 1 Weapon 3 | . . 3 Highest Loss Streak 6 | . 1 6 To Critical Strikes . | . . . Average Backups 7 | 3 6 9 Power . | . 1 1 Propulsion 3 | 1 2 4 Utility 1 | . 2 1 Weapon 1 | . 1 1 Tool/Special . | . . . Unused Backups 18 | 2 . 16 Power 2 | . . 2 Propulsion 11 | . . 11 Utility 1 | . . 1 Weapon 4 | 2 . 2 Tool/Special . | . . . Average Slot Usage (%) 89 | . 99 79 Engine 12 | . 13 10 Treads 28 | . 28 29 Device 12 | . 14 11 Storage 12 | . 14 11 Ballistic Gun 21 | . 28 15 Peak Build Rating 15 | 7 8 15 Average Rating 9 | 5 6 12 On Entrance 4 | . 7 7 Naked Turns . | . . . Heaviest Build 25 | 14 19 25 Greatest Support 66 | 40 40 66 Greatest Overweight (x) 6 | . . 6 Average Overweight (x) . | . . . Largest Inventory Capacity 10 | 8 10 10 Average Capacity 9 | 7 9 10 Most Carried 10 | 6 8 10 Average Carried 7 | 3 6 9 Final Capacity 10 | 8 10 10 Final Carried 10 | 6 7 10 Class Distribution -------------------- 100% | Mutant Dominant Class ---------------- Mutant | -10/Materials Mutant | -9/Materials Resources | -11 -10 -9 ----------- Run | Yrd Mat Mat Matter Collected 661 | 267 210 184 Remotely . | . . . Salvage Created 868 | 171 344 353 Parts 71 | 22 19 30 Haulers Intercepted 3 | . 2 1 Recyclers Shooed . | . . . Parts Field Recycled . | . . . Retrieved Matter . | . . . Parts Self-Destructed . | . . . Prevented . | . . . Kills | -11 -10 -9 ------- Run | Yrd Mat Mat Combat Hostiles Destroyed 19 | . 6 13 Guns 19 | . 6 13 Classes Destroyed 7 | 2 2 3 Worker 1 | . . 1 Tunneler 6 | 6 . . Hauler 3 | . 2 1 Recycler 1 | 1 . . Watcher 1 | . . 1 Swarmer 8 | . . 8 Grunt 11 | . 6 5 Best Kill Streak 4 | 3 2 4 Combat Bots Only 4 | . 2 4 Max Kills in Single Turn 1 | 1 1 1 Gunslinging . | . . . Exploded . | . . . Melee . | . . . Uniques/NPCs Destroyed . | . . . Combat | -11 -10 -9 -------- Run | Yrd Mat Mat Hostile Shots Fired 220 | . 33 187 Missed 54 | . 3 51 Hits 166 | . 30 136 Projectile 166 | . 30 136 Critical Strikes 2 | . . 2 Damage Taken 1813 | . 438 1375 Core 446 | . 45 401 Absorbed by Shields . | . . . Core Remaining (%) 91 | 100 82 . Volleys Fired 105 | 14 41 50 Largest 2 | 2 2 2 Hottest 88 | 40 40 88 Shots Fired 188 | 28 82 78 Gun 188 | 28 82 78 Cannon . | . . . Launcher . | . . . Special . | . . . Kinetic 180 | 28 82 70 Thermal 8 | . . 8 Explosive . | . . . Electromagnetic . | . . . Robot Hit Streak 14 | 9 8 14 Robot Miss Streak 6 | 2 5 6 Penetration Max . | . . . Secondary Targets 3 | . 1 2 Max Gunslinging Chain 1 | . 1 1 Shots Hit Robots 118 | 18 51 49 Core Hits 50 | 10 21 19 Critical Kills . | . . . Critical Parts Destroyed . | . . . Critical Strikes . | . . . Melee Attacks . | . . . Impact . | . . . Slashing . | . . . Piercing . | . . . Sneak Attacks . | . . . Combat Hostiles . | . . . Follow-up Attacks . | . . . Damage Inflicted 1511 | 194 566 751 Guns 1493 | 194 556 743 Cannons . | . . . Explosions . | . . . Melee . | . . . Ramming 18 | . 10 8 Kinetic 1460 | 194 556 710 Thermal 33 | . . 33 Explosive . | . . . Electromagnetic . | . . . Impact . | . . . Slashing . | . . . Piercing . | . . . Highest Corruption . | . . . Average Corruption . | . . . Corruption Purged . | . . . Corruption Blocked . | . . . Overload Shots . | . . . Overflow Damage . | . . . Projectiles . | . . . Explosions . | . . . Melee . | . . . Knockbacks . | . . . Impact . | . . . Kinetic . | . . . Secondary . | . . . Self-Inflicted Damage . | . . . Shots . | . . . Rammed 1 | . 1 . Targets Rammed 3 | . 1 2 Kicked . | . . . Crushed 2 | . . 2 Highest Temperature 154 | . 30 154 Average Temperature 26 | . 9 34 Received Heat Transfer 540 | . 228 312 Siege Activations . | . . . Martial Activations . | . . . Shielding Activations . | . . . Robots Disrupted . | . . . Combat Hostiles . | . . . Robots Corrupted . | . . . Combat Hostiles . | . . . Parts Fried . | . . . Impact Corruptions . | . . . Robots Melted . | . . . Combat Hostiles . | . . . Parts Melted 1 | . . 1 Heat Transferred 74 | . . 74 Parts Sabotaged . | . . . Parts Stolen . | . . . Parts Stripped . | . . . Power Chain Reactions . | . . . Alert | -11 -10 -9 ------- Run | Yrd Mat Mat Maximum Alert Level . | . . . Low Security (%) 100 | 100 100 100 Level 1 . | . . . Level 2 . | . . . Level 3 . | . . . Level 4 . | . . . Level 5 . | . . . High Security . | . . . Max Security . | . . . Peak Influence 139 | 5 98 139 Initial 26 | . . 26 Average 26 | . 22 41 Influence Increases 558 | 35 189 334 Destroy 0b10 Robot/C 380 | . 120 260 Destroy 0b10 Robot/NC 60 | 35 10 15 Destroy Leader 88 | . 44 44 Lose Combat Pursuer 30 | . 15 15 Influence Decreases 504 | 35 127 342 Entered New Map 36 | . . 36 Time Decay 378 | 35 117 226 Lost Part 90 | . 10 80 Squads Dispatched 3 | . 2 1 Investigation 1 | . 1 . Extermination . | . . . Reinforcement 2 | . 1 1 Assault . | . . . Garrison . | . . . Intercept . | . . . Searches Triggered . | . . . Construction Impeded . | . . . Haulers Reinforced . | . . . Active Scanning Responses . | . . . Cargo Convoy Interrupts . | . . . Stealth | -11 -10 -9 --------- Run | Yrd Mat Mat Distress Signals 6 | . 3 3 Communications Jammed . | . . . Distress Signals . | . . . Times Spotted 43 | . 13 30 Peak Tracking Total 13 | . 3 13 Tactical Retreats 2 | . 1 1 Traps | -11 -10 -9 ------- Run | Yrd Mat Mat Traps Triggered 2 | . 2 . Indirectly . | . . . Trap Hack Attempts . | . . . Triggered . | . . . Disarmed . | . . . Reprogrammed . | . . . Reused . | . . . Traps Extracted . | . . . Installed . | . . . Triggered . | . . . Machines | -11 -10 -9 ---------- Run | Yrd Mat Mat Machines Disabled . | . . . Max in Single Turn . | . . . Machines Repaired . | . . . Machines Dismantled . | . . . Machines Sabotaged . | . . . Overloaded Fab Kills . | . . . Hacking | -11 -10 -9 --------- Run | Yrd Mat Mat Machines Accessed 3 | . 2 1 Terminals 3 | . 2 1 Fabricators . | . . . Repair Stations . | . . . Recycling Units . | . . . Scanalyzers . | . . . Garrison Access . | . . . Total Hacks 3 | . 2 1 Successful 1 | . 1 . Failed 2 | . 1 1 Catastrophic . | . . . Database Lockouts . | . . . Manual 3 | . 2 1 Terminals 3 | . 2 1 Fabricators . | . . . Repair Stations . | . . . Recycling Units . | . . . Scanalyzers . | . . . Garrison Access . | . . . Terminal Hacks 1 | . 1 . Robot Analysis 1 | . 1 . Fabricator Hacks . | . . . Repair Station Hacks . | . . . Recycling Unit Hacks . | . . . Scanalyzer . | . . . Garrison Access Hacks . | . . . Unauthorized Hacks . | . . . Terminals . | . . . Fabricators . | . . . Repair Stations . | . . . Recycling Units . | . . . Scanalyzers . | . . . Garrison Access . | . . . Data Cores Recovered . | . . . Used . | . . . Hacking Detections 3 | . 2 1 Full Trace Events . | . . . Feedback Events . | . . . Feedback Blocked . | . . . Robot Schematics Acquired . | . . . Robots Built . | . . . Authchips . | . . . Time . | . . . Total Robot Build Rating . | . . . Part Schematics Acquired . | . . . Parts Built . | . . . Authchips . | . . . Time . | . . . Total Part Build Rating . | . . . Parts Repaired . | . . . Time . | . . . Parts Recycled . | . . . Recycled Matter . | . . . Retrieved Matter . | . . . Retrieved Components . | . . . Parts Scanalyzed . | . . . Part Schematics Acquired . | . . . Parts Damaged . | . . . Bothacking | -11 -10 -9 ------------ Run | Yrd Mat Mat Used RIF Installer . | . . . Robots Hacked . | . . . Non-combat . | . . . Combat . | . . . Robot Hacks Applied . | . . . Relay Couplers Released . | . . . Fabnet Peak Effective % . | . . . Robots Rewired . | . . . Allies Hacked . | . . . Hacks Repelled . | . . . Allies | -11 -10 -9 -------- Run | Yrd Mat Mat Total Allies . | . . . Largest Group . | . . . Highest-Rated Group . | . . . Highest-Rated Ally . | . . . Total Orders . | . . . Ally Attacks . | . . . Total Damage . | . . . Kills . | . . . Allies Corrupted . | . . . Allies Melted . | . . . Intel | -11 -10 -9 ------- Run | Yrd Mat Mat Active Infowar (turns) 1427 | 134 663 630 Seismic 1427 | 134 663 630 Robot Analysis Total 1 | . 1 . Derelict Logs Recovered . | . . . Drone Launches . | . . . Drone Recoveries . | . . . Exploration | -11 -10 -9 ------------- Run | Yrd Mat Mat Turns Passed 1527 | 230 663 634 Spaces Moved 725 | 112 327 286 Core 23 | 7 . 16 Treads 702 | 105 327 270 Legs . | . . . Wheels . | . . . Hover . | . . . Flight . | . . . Fastest Speed 50 | 50 160 160 Average Speed 160 | 153 160 163 Slowest Speed 350 | 160 160 350 Overloaded Moves . | . . . Propulsion Burnouts . | . . . Robots Hopped . | . . . Potential Cave-ins . | . . . Cave-ins Triggered . | . . . Exploration Rate (%) 36 | 6 68 35 Regions Visited 2 Branch Regions . Pre-discovered Areas . | . . . Known Exits Taken . | . . . Unknown Exits Taken 2 | 1 1 . Scrap Searched . | . . . Spaces Dug . | . . . Terrain Destroyed . | . . . Melee . | . . . Projectile . | . . . AOE . | . . . Terrain Rammed . | . . . Walls Destroyed . | . . . Machines Disabled . | . . . Actions | -11 -10 -9 --------- Run | Yrd Mat Mat Total 922 | 142 393 387 Wait 35 | . 16 19 Move 723 | 111 326 286 Hop . | . . . Pick Up 21 | 7 3 11 Fast Attach 8 | 7 . 1 Attach 3 | . 1 2 Detach . | . . . Swap 9 | 1 2 6 Drop 15 | 2 3 10 Fire 105 | 14 41 50 Melee . | . . . Ram . | . . . Kick . | . . . Crush 3 | . 1 2 Escape Stasis . | . . . Rewire . | . . . Trap . | . . . Miscellaneous . | . . . Route ------- -11/Scrapyard -10/Materials (discovered 2 exits: *Mat / [*Min]) -9/Materials History --------- Turn | Location | Event 10 | -11/Scrapyard | Discovered new exit (range 14) 231 | -11/Scrapyard | Entered Materials 310 | -10/Materials | Build established: Mutant 468 | -10/Materials | Discovered new exit (range 12) 881 | -10/Materials | Discovered new exit (range 5) 894 | -10/Materials | Entered another Materials area 894 | -9/Materials | Evolved 2 slots: Propulsion x1, Utility x1 1496 | -9/Materials | Core integrity fell below 50% 1522 | -9/Materials | Core integrity fell below 20% 1528 | -9/Materials | Destroyed by Y-45 Defender with Heavy Assault Rifle Last Messages --------------- 01429_ Lgt. Treads destroyed. 01433_ G-34 Mercenary destroyed. 01437_ Acquired 36 matter. 01440_ Acquired 32 matter. 01442_ K-01 Serf collects debris. 01452_ C-30 ARC bursts open, deploying its payload. 01452_ G-47 Trooper unfolds itself. 01452_ G-34 Mercenary unfolds itself. 01464_ Critical hit (Burn: +37). 01465_ W-16 Scout sends out distress signal. 01467_ Autogun destroyed. 01470_ Seismic Detector destroyed. 01471_ Crushed W-16 Scout. 01471_ W-16 Scout destroyed. 01472_ Acquired 4 matter. 01475_ Acquired Hover Unit. 01484_ Imp. Treads destroyed. 01492_ Autogun destroyed. 01501_ Hvy. Ion Engine destroyed. 01523_ W-16 Scout sends out distress signal. Map ----- +----------------------------------------------------+ | ???????? #???# #???????????? | | ????????? ????# #???????????? | | ????????? ????# #???????????? | | ???????###+###?## ##??????????? | | ???????# #?# #??????????? | | ??""" # ### #??????????? | | ??""" + T ! #??????????? | | ??""" # ### #??????????? | | ???????#! ! #?# #??????????? | | ???????### ###?### #########+#### | | ?????????# #?????# "%" | | ?????????# #?????# " | | ?????????# #?????# | | ?????????# #?????#### """ | | ?????????# #????????## ### """ | | ?????????# #????######+#### """ | | ?????????# #????# =#! | | ?????????#/###### ! + = | | ?????????# g # """ [#= """ | | ?????????# """ # """"" # """ | | ?????????# """ #" """"" # """ | | ???###+### s""" #T """"" # | | ???# #g #" """ # | | ???# #s """ # # """ | | ???# Y s """ ########+## """ | | ???# @# """ #??????# """ | | ???# # #??????# % | | ???### ### """ #??????# * | | ?????# ??# """ #??????#### " | | ?????#???# """ #?????????# " | | ?????????# #?????????# " | | ?????????#######????????### | | ????????????????????????# | | ????????????????????????# """ | | ????????????????????????# """ | | ????????????????????????# """ | | ????????????????????????# | | ????????????????????????# | | ????????????????????????# """ | | ????????????????????????# """ | | ????????????????????????# """ | | ????????????????????????# | | ????????????????????????# | | ????????????????????????####### | | ??????????????????????????????# | | ??????????????????????????????# | | ????????????????????########### | | ????????????????????# ## | | ????????????????????# ## | | ????????????????????# !=! # | +----------------------------------------------------+ Best States ------------- Heat Dissipation 28 Energy Generation 14 Energy Capacity 280 Matter Stores 278 Matter Capacity 300 Sight Range 16 Terrain Scan Density 10 Evasion (%) 40 Recoil Reduction 3 Item Schematics ----------------- None Robot Schematics ------------------ None Fabricated ------------ Nothing Repaired ---------- Nothing Alien Tech Used ----------------- None Achievements -------------- None Challenges ------------ None Game ------ Seed TeleporterMasterChronowheel Manual? 0 Play Time 00:09:53 Cumulative 161.3 hours Start 2025.07.15 @ 15:49:54 End 2025.07.15 @ 15:57:05 Sessions 1 Manual Loads 0 Difficulty Rogue Special Mode None Game No. 401 Rogue 401 Adventurer 0 Explorer 0 Win Type - Total 6 Types 5/0/1/0/0/0/0/0/0/0 Lore% 70 Gallery% 61 Achievement% 48 Wizard Run 0 Options --------- Layout 0 ASCII 0 Keyboard 0 Movement Numpad Keybinds 0 Fullscreen 2 Font 18/Terminus Map View 76x50 Zoom Use 0% Tactical HUD 1 Map Filters NONE Filters SATURATION(100) Steam 1 RUN: 9b8d30c7-155e-4967-97e0-1ae43fd8df2e